{"text_format":"1","workbook":"xlsx","n_sheets":2,"sheets":["Ženy","Muži"],"not_rendered":{"charts":0,"images":0,"macros":1,"external_links":0,"defined_names":0,"comments":0,"pivot_tables":0},"unopened":[],"bounds":{"document_bytes":16777216,"sheet_cells":100000,"rows_first":2000,"rows_last":500,"rows_between":2000,"halvings":0,"cell_chars":16384,"cell_head_chars":4096},"cells_cut":0,"cells_raw":0,"read":"whole","date_system":"1900"}

{"sheet":"Ženy","index":0,"n_rows":205,"n_cols":57,"rows_kept":205,"cut":false,"hidden":false,"merged":[]}
[]
[]
[]
[]
[null,"St. č.","Jméno","Stát","Čas 1. kolo","Čas 2. kolo",null,null,null,null,null,null,null,null,null,null,null,null,null,null,null,null,null,null,null,null,"Pořadí","St. č.","Jméno","Stát","Čas 1. kolo",null,null,null,null,null,null,null,null,null,null,null,null,null,null,null,null,null,null,null,null,null,"Pořadí","St. č.","Jméno","Stát","Celkový čas "]
[null,1,"Shiffrin Mikaela","USA","00:01:56.200","00:01:55.700",null,null,null,null,null,null,null,null,null,null,null,null,null,null,null,null,null,null,null,null,"1.",4,"Vonn Lindsey","USA","00:01:56",null,null,null,null,null,null,null,null,null,null,null,null,null,null,null,null,null,null,null,null,null,"1.",4,"Vonn Lindsey","USA","00:03:51.100"]
[null,2,"Brignone Federica","ITA","00:01:56.100","00:01:55.800",null,null,null,null,null,null,null,null,null,null,null,null,null,null,null,null,null,null,null,null,"2.",2,"Brignone Federica","ITA","00:01:56.100",null,null,null,null,null,null,null,null,null,null,null,null,null,null,null,null,null,null,null,null,null,"2.",3,"Ledecká Ester","CZE","00:03:51.300"]
[null,3,"Ledecká Ester","CZE","00:01:56.300","00:01:55",null,null,null,null,null,null,null,null,null,null,null,null,null,null,null,null,null,null,null,null,"3.",1,"Shiffrin Mikaela","USA","00:01:56.200",null,null,null,null,null,null,null,null,null,null,null,null,null,null,null,null,null,null,null,null,null,"3.",5,"Suter Corinne","SUI","00:03:51.600"]
[null,4,"Vonn Lindsey","USA","00:01:56","00:01:55.100",null,null,null,null,null,null,null,null,null,null,null,null,null,null,null,null,null,null,null,null,"4.",3,"Ledecká Ester","CZE","00:01:56.300",null,null,null,null,null,null,null,null,null,null,null,null,null,null,null,null,null,null,null,null,null,"4.",1,"Shiffrin Mikaela","USA","00:03:51.600"]
[null,5,"Suter Corinne","SUI","00:01:56.400","00:01:55.200",null,null,null,null,null,null,null,null,null,null,null,null,null,null,null,null,null,null,null,null,"5.",5,"Suter Corinne","SUI","00:01:56.400",null,null,null,null,null,null,null,null,null,null,null,null,null,null,null,null,null,null,null,null,null,"5.",2,"Brignone Federica","ITA","00:03:51.900"]
[]
[]
[]
[]
[]
[]
[]
[]
[]
[]
[]
[]
[]
[]
[]
[]
[]
[]
[]
[]
[]
[]
[]
[]
[]
[]
[]
[]
[]
[]
[]
[]
[]
[]
[]
[]
[]
[]
[]
[]
[]
[]
[]
[]
[]
[]
[]
[]
[]
[]
[]
[]
[]
[]
[]
[]
[]
[]
[]
[]
[]
[]
[]
[]
[]
[]
[]
[]
[]
[]
[]
[]
[]
[]
[]
[]
[]
[]
[]
[]
[]
[]
[]
[]
[]
[]
[]
[]
[]
[null,"St. č.","Jméno","Stát","Čas 1. kolo",null,"prázdná","číslo"]
[null,1,"Shiffrin Mikaela","USA",{"$f":"IF(G101,\"---\",IF(H101,E6,\"DNF\"))","v":"00:01:56.200"},null,{"$f":"ISBLANK(E6)","v":false},{"$f":"ISNUMBER(E6)","v":true}]
[null,2,"Brignone Federica","ITA",{"$f":"IF(G102,\"---\",IF(H102,E7,\"DNF\"))","v":"00:01:56.100"},null,{"$f":"ISBLANK(E7)","v":false},{"$f":"ISNUMBER(E7)","v":true}]
[null,3,"Ledecká Ester","CZE","00:01:56.300",null,false,true]
[null,4,"Vonn Lindsey","USA","00:01:56",null,false,true]
[null,5,"Suter Corinne","SUI","00:01:56.400",null,false,true]
[]
[]
[]
[]
[]
[]
[]
[]
[]
[]
[]
[]
[]
[]
[]
[]
[]
[]
[]
[]
[]
[]
[]
[]
[]
[]
[]
[]
[]
[]
[]
[]
[]
[]
[]
[]
[]
[]
[]
[]
[]
[]
[]
[]
[]
[]
[]
[]
[]
[]
[]
[]
[]
[]
[]
[]
[]
[]
[]
[]
[]
[]
[]
[]
[]
[]
[]
[]
[]
[]
[]
[]
[]
[]
[]
[]
[]
[]
[]
[]
[]
[]
[]
[]
[]
[]
[]
[]
[]
[]
[]
[]
[]
[]
[null,"St. č.","Jméno","Stát","Celkový čas",null,"prázdná","chyba"]
[null,1,"Shiffrin Mikaela","USA",{"$f":"IF(H201,\"DNF\",IF(G201,\"---\",E6+F6))","v":"00:03:51.900"},null,{"$f":"ISBLANK(F6)","v":false},{"$f":"ISERROR(E6+F6)","v":false}]
[null,2,"Brignone Federica","ITA",{"$f":"IF(H202,\"DNF\",IF(G202,\"---\",E7+F7))","v":"00:03:51.900"},null,{"$f":"ISBLANK(F7)","v":false},{"$f":"ISERROR(E7+F7)","v":false}]
[null,3,"Ledecká Ester","CZE","00:03:51.300",null,false,false]
[null,4,"Vonn Lindsey","USA","00:03:51.100",null,false,false]
[null,5,"Suter Corinne","SUI","00:03:51.600",null,false,false]

{"sheet":"Muži","index":1,"n_rows":205,"n_cols":57,"rows_kept":205,"cut":false,"hidden":false,"merged":[]}
[]
[]
[]
[]
[null,"St. č.","Jméno","Stát","Čas 1. kolo","Čas 2. kolo",null,null,null,null,null,null,null,null,null,null,null,null,null,null,null,null,null,null,null,null,"Pořadí","St. č.","Jméno","Stát","Čas 1. kolo",null,null,null,null,null,null,null,null,null,null,null,null,null,null,null,null,null,null,null,null,null,"Pořadí","St. č.","Jméno","Stát","Celkový čas "]
[null,1,null,null,null,null,null,null,null,null,null,null,null,null,null,null,null,null,null,null,null,null,null,null,null,null,"1.",1,null,null,null,null,null,null,null,null,null,null,null,null,null,null,null,null,null,null,null,null,null,null,null,null,"1."]
[null,2,null,null,null,null,null,null,null,null,null,null,null,null,null,null,null,null,null,null,null,null,null,null,null,null,"2.",2,null,null,null,null,null,null,null,null,null,null,null,null,null,null,null,null,null,null,null,null,null,null,null,null,"2."]
[null,3,null,null,null,null,null,null,null,null,null,null,null,null,null,null,null,null,null,null,null,null,null,null,null,null,"3.",3,null,null,null,null,null,null,null,null,null,null,null,null,null,null,null,null,null,null,null,null,null,null,null,null,"3."]
[null,4,null,null,null,null,null,null,null,null,null,null,null,null,null,null,null,null,null,null,null,null,null,null,null,null,"4.",4,null,null,null,null,null,null,null,null,null,null,null,null,null,null,null,null,null,null,null,null,null,null,null,null,"4."]
[null,5,null,null,null,null,null,null,null,null,null,null,null,null,null,null,null,null,null,null,null,null,null,null,null,null,"5.",5,null,null,null,null,null,null,null,null,null,null,null,null,null,null,null,null,null,null,null,null,null,null,null,null,"5."]
[]
[]
[]
[]
[]
[]
[]
[]
[]
[]
[]
[]
[]
[]
[]
[]
[]
[]
[]
[]
[]
[]
[]
[]
[]
[]
[]
[]
[]
[]
[]
[]
[]
[]
[]
[]
[]
[]
[]
[]
[]
[]
[]
[]
[]
[]
[]
[]
[]
[]
[]
[]
[]
[]
[]
[]
[]
[]
[]
[]
[]
[]
[]
[]
[]
[]
[]
[]
[]
[]
[]
[]
[]
[]
[]
[]
[]
[]
[]
[]
[]
[]
[]
[]
[]
[]
[]
[]
[]
[null,"St. č.","Jméno","Stát","Čas 1. kolo",null,"prázdná","číslo"]
[null,1,null,null,null,null,{"$f":"ISBLANK(E6)","v":true},{"$f":"ISNUMBER(E6)","v":false}]
[null,2,null,null,null,null,{"$f":"ISBLANK(E7)","v":true},{"$f":"ISNUMBER(E7)","v":false}]
[null,3,null,null,null,null,true,false]
[null,4,null,null,null,null,true,false]
[null,5,null,null,null,null,true,false]
[]
[]
[]
[]
[]
[]
[]
[]
[]
[]
[]
[]
[]
[]
[]
[]
[]
[]
[]
[]
[]
[]
[]
[]
[]
[]
[]
[]
[]
[]
[]
[]
[]
[]
[]
[]
[]
[]
[]
[]
[]
[]
[]
[]
[]
[]
[]
[]
[]
[]
[]
[]
[]
[]
[]
[]
[]
[]
[]
[]
[]
[]
[]
[]
[]
[]
[]
[]
[]
[]
[]
[]
[]
[]
[]
[]
[]
[]
[]
[]
[]
[]
[]
[]
[]
[]
[]
[]
[]
[]
[]
[]
[]
[]
[null,"St. č.","Jméno","Stát","Celkový čas",null,"prázdná","chyba"]
[null,1,null,null,null,null,{"$f":"ISBLANK(F6)","v":true},{"$f":"ISERROR(E6+F6)","v":false}]
[null,2,null,null,null,null,{"$f":"ISBLANK(F7)","v":true},{"$f":"ISERROR(E7+F7)","v":false}]
[null,3,null,null,null,null,true,false]
[null,4,null,null,null,null,true,false]
[null,5,null,null,null,null,true,false]